[Event "GAMMA Reykjavik Open 2019"]
[Site "Reykjavik"]
[Date "2019.04.16"]
[Round "9.29"]
[White "Baldursson, Hrannar"]
[Black "Pigott, John C"]
[Result "0-1"]
[ECO "E06"]
[WhiteElo "2122"]
[BlackElo "2384"]
[Annotator "NA"]
[PlyCount "118"]
[EventDate "2019.04.04"]
[EventType "swiss"]
[EventCountry "ISL"]
[SourceTitle "playchess.com"]
[Source "ChessBase"]
[SourceQuality "1"]
[TimeControl "40/5400+30:1800+30"]

1. c4 {[%emt 0:00:00]} e6 {[%emt 0:05:01]} 2. g3 {[%emt 0:01:37]} d5 {[%emt 0:00:00]} 3. Bg2 {[%emt 0:00:14]} Nf6 {[%emt 0:04:31]} 4. cxd5 {[%emt 0:01:57]} exd5 {[%emt 0:00:00]} 5. Nf3 {[%emt 0:00:14]} Be7 {[%emt 0:00:00]} 6. O-O {[%emt 0:00:36]} O-O {[%emt 0:00:00]} 7. d4 {[%emt 0:01:59]} c6 {[%emt 0:00:56]} 8. Nc3 {[%emt 0:00:38]} Bf5 $11 {[%emt 0:01:48]} 9. Nh4 {[%emt 0:00:32]} Be6 {[%emt 0:00:34]} 10. Qd3 {[%emt 0:00:24]} Re8 {[%emt 0:02:10]} 11. Nf5 {[%emt 0:02:13]} Bb4 {[%emt 0:04:29]} 12. Bg5 {[%emt 0:04:27]} Nbd7 {[%emt 0:05:23]} 13. e4 {[%emt 0:04:58]} dxe4 {[%emt 0:04:01]} 14. Bxe4 {[%emt 0:03:25]} Qa5 {[%emt 0:07:27]} 15. f3 {[%emt 0:04:29]} Rad8 {[%emt 0:12:38]} 16. a3 {[%emt 0:02:57]} Bf8 {[%emt 0:02:36]} 17. b4 {[%emt 0:00:44]} Qb6 {[%emt 0:08:04]} 18. Na4 {[%emt 0:02:59]} Qc7 {[%emt 0:05:05]} 19. Bf4 {[%emt 0:01:16]} Qc8 {[%emt 0:00:06]} 20. Rac1 {[%emt 0:02:26]} Nxe4 {[%emt 0:11:44]} 21. fxe4 {[%emt 0:00:09]} Nb6 {[%emt 0:02:24]} 22. Nxb6 {[%emt 0:02:13]} axb6 {[%emt 0:00:06]} 23. Bg5 {[%emt 0:03:51]} f6 {[%emt 0:00:13]} 24. Be3 {[%emt 0:00:22]} Qd7 {[%emt 0:01:19]} 25. d5 {[%emt 0:02:37]} cxd5 {[%emt 0:01:02]} 26. Bxb6 {[%emt 0:01:20]} dxe4 {[%emt 0:00:30]} 27. Qxe4 {[%emt 0:00:32]} Rc8 {[%emt 0:02:25]} 28. Bc5 {[%emt 0:02:12]} b6 {[%emt 0:04:34]} 29. Be3 {[%emt 0:07:14]} Rxc1 {[%emt 0:07:31]} 30. Bxc1 {[%emt 0:00:58]} b5 {[%emt 0:00:09]} 31. Qf3 {[%emt 0:03:14]} Bc4 {[%emt 0:01:15]} 32. Rd1 {[%emt 0:02:51]} Qa7+ {[%emt 0:00:06]} 33. Kg2 {[%emt 0:01:41]} Re2+ {[%emt 0:01:37]} 34. Kh3 {[%emt 0:00:50]} Rf2 {[%emt 0:00:46]} 35. Qe3 {[%emt 0:02:10]} Qf7 {[%emt 0:01:58]} 36. Qxf2 {[%emt 0:00:28]} Qh5+ {[%emt 0:00:05]} 37. Kg2 {[%emt 0:02:50]} Qxd1 {[%emt 0:00:06]} 38. Bb2 {[%emt 0:01:41]} Bd5+ {[%emt 0:02:58]} 39. Kh3 {[%emt 0:00:11]} Qh5+ {[%emt 0:02:52]} 40. Nh4 {[%emt 0:00:00]} g5 {[%emt 0:00:00]} 41. Qf5 {[%emt 0:00:48]} Qf7 {[%emt 0:00:43]} 42. Qxf6 {[%emt 0:05:22]} Qxf6 {[%emt 0:00:10]} 43. Bxf6 {[%emt 0:00:06]} gxh4 {[%emt 0:00:45]} 44. Kxh4 {[%emt 0:00:17]} Kf7 {[%emt 0:00:06]} 45. Bd4 {[%emt 0:00:53]} Bf3 {[%emt 0:02:02]} 46. Kg5 {[%emt 0:00:22]} Ke6 {[%emt 0:00:25]} 47. Bb2 {[%emt 0:03:18]} Kd5 {[%emt 0:02:13]} 48. Kf6 {[%emt 0:00:19]} Kc4 {[%emt 0:00:33]} 49. Be5 {[%emt 0:00:46]} Kb3 {[%emt 0:03:27]} 50. Kf7 {[%emt 0:01:12]} Bh6 {[%emt 0:00:07]} 51. Bf4 {[%emt 0:00:10]} Bxf4 {[%emt 0:00:20]} 52. gxf4 {[%emt 0:00:01]} Be4 {[%emt 0:00:16]} 53. Ke6 {[%emt 0:00:08]} Kxa3 {[%emt 0:00:19]} 54. f5 {[%emt 0:00:06]} Kxb4 {[%emt 0:00:12]} 55. f6 {[%emt 0:00:09]} Bg6 {[%emt 0:00:12]} 56. h4 {[%emt 0:00:16]} Kc5 {[%emt 0:00:12]} 57. f7 {[%emt 0:00:15]} Bxf7+ {[%emt 0:00:04]} 58. Kxf7 {[%emt 0:00:08]} b4 {[%emt 0:00:05]} 59. Kg7 {[%emt 0:00:08]} h5 {[%emt 0:00:19]} 0-1

[Event "GAMMA Reykjavik Open 2019"]
[Site "Reykjavik"]
[Date "2019.04.16"]
[Round "9.30"]
[White "Van de Plassche, Bas"]
[Black "Maroroa, Sue"]
[Result "0-1"]
[ECO "A65"]
[WhiteElo "2376"]
[BlackElo "2128"]
[Annotator "NA"]
[PlyCount "60"]
[EventDate "2019.04.04"]
[EventType "swiss"]
[EventCountry "ISL"]
[SourceTitle "playchess.com"]
[Source "ChessBase"]
[SourceQuality "1"]
[TimeControl "40/5400+30:1800+30"]

1. d4 {[%emt 0:00:00]} Nf6 {[%emt 0:05:43]} 2. c4 {[%emt 0:00:00]} g6 {[%emt 0:00:10]} 3. Nc3 {[%emt 0:00:01]} Bg7 {[%emt 0:00:07]} 4. e4 {[%emt 0:00:12]} d6 {[%emt 0:00:09]} 5. f3 {[%emt 0:00:24]} O-O {[%emt 0:00:42]} 6. Nge2 {[%emt 0:00:15]} c5 {[%emt 0:00:41]} 7. d5 {[%emt 0:00:18]} e6 {[%emt 0:00:56]} 8. Ng3 {[%emt 0:00:15]} exd5 {[%emt 0:01:29]} 9. cxd5 {[%emt 0:00:22]} Nh5 {[%emt 0:00:19]} 10. Nxh5 {[%emt 0:00:18]} gxh5 {[%emt 0:00:04]} 11. Bd3 {[%emt 0:00:26]} f5 {[%emt 0:02:55]} 12. O-O {[%emt 0:01:07]} f4 {[%emt 0:02:12]} 13. Ne2 {[%emt 0:00:37]} Be5 {[%emt 0:05:35]} 14. Rb1 {[%emt 0:00:42]} h4 {[%emt 0:05:43]} 15. Kh1 {[%emt 0:04:24]} Kh8 {[%emt 0:10:33]} 16. Bd2 {[%emt 0:17:44]} a6 {[%emt 0:08:18]} 17. a4 {[%emt 0:09:41]} a5 {[%emt 0:03:52]} 18. Bb5 {[%emt 0:15:09]} Bd7 {[%emt 0:03:57]} 19. g3 {[%emt 0:16:17]} hxg3 {[%emt 0:16:34]} 20. hxg3 {[%emt 0:01:06]} Bh3 {[%emt 0:08:30]} 21. Nxf4 {[%emt 0:04:30]} Bxf4 {[%emt 0:05:51]} 22. Bxf4 {[%emt 0:02:31]} Rxf4 {[%emt 0:01:54]} 23. gxf4 {[%emt 0:01:00]} Bxf1 {[%emt 0:02:01]} 24. Qxf1 {[%emt 0:10:42]} Qh4+ {[%emt 0:00:22]} 25. Kg2 {[%emt 0:00:26]} Nc6 {[%emt 0:02:06]} 26. Qe1 {[%emt 0:05:53]} Rg8+ {[%emt 0:00:33]} 27. Kf1 {[%emt 0:00:09]} Qh2 {[%emt 0:05:07]} 28. Qc3+ {[%emt 0:02:20]} Nd4 {[%emt 0:00:30]} 29. Ke1 {[%emt 0:00:09]} Rg1+ {[%emt 0:00:13]} 30. Bf1 {[%emt 0:00:05]} Qe2# {[%emt 0:00:22]} 0-1

[Event "GAMMA Reykjavik Open 2019"]
[Site "Reykjavik"]
[Date "2019.04.16"]
[Round "9.31"]
[White "Vaishali R"]
[Black "Rice, Chris B"]
[Result "0-1"]
[ECO "C11"]
[WhiteElo "2353"]
[BlackElo "2026"]
[Annotator "NA"]
[PlyCount "91"]
[EventDate "2019.04.04"]
[EventType "swiss"]
[EventCountry "ISL"]
[SourceTitle "playchess.com"]
[Source "ChessBase"]
[SourceQuality "1"]
[TimeControl "40/5400+30:1800+30"]

1. e4 {[%emt 0:00:00]} e6 {[%emt 0:00:27]} 2. d4 {[%emt 0:00:00]} d5 {[%emt 0:02:16]} 3. Nc3 {[%emt 0:00:07]} Nf6 {[%emt 0:00:17]} 4. e5 {[%emt 0:00:05]} Nfd7 {[%emt 0:00:05]} 5. f4 {[%emt 0:00:05]} c5 {[%emt 0:01:01]} 6. Nf3 {[%emt 0:00:07]} Nc6 {[%emt 0:00:13]} 7. Be3 {[%emt 0:00:06]} Be7 {[%emt 0:00:46]} 8. Qd2 {[%emt 0:00:18]} O-O {[%emt 0:00:13]} 9. Be2 {[%emt 0:00:29]} a6 $11 {[%emt 0:13:13] LiveBook: 244 Games} 10. O-O {[%emt 0:00:20]} Qc7 {[%emt 0:02:08]} 11. Nd1 {[%emt 0:16:45]} cxd4 {[%emt 0:05:41]} 12. Nxd4 {[%emt 0:00:10]} Nc5 {[%emt 0:01:45]} 13. Nf2 {[%emt 0:03:07]} Bd7 {[%emt 0:02:56]} 14. c3 {[%emt 0:04:43]} b5 {[%emt 0:29:29]} 15. Nxc6 {[%emt 0:13:20]} Bxc6 {[%emt 0:00:39]} 16. Bd4 {[%emt 0:00:06]} Rac8 {[%emt 0:06:00]} 17. Qe3 {[%emt 0:09:47]} Bd7 {[%emt 0:04:14]} 18. b4 {[%emt 0:12:00]} Na4 {[%emt 0:00:43]} 19. Bd3 {[%emt 0:04:24]} f5 {[%emt 0:05:51]} 20. exf6 {[%emt 0:03:03]} Bxf6 {[%emt 0:01:49]} 21. Ng4 {[%emt 0:02:56]} Bxd4 {[%emt 0:02:01]} 22. cxd4 {[%emt 0:00:07]} Nb2 {[%emt 0:02:02]} 23. Ne5 {[%emt 0:04:24]} Nxd3 {[%emt 0:04:03]} 24. Nxd3 {[%emt 0:01:23]} Qd6 {[%emt 0:00:57]} 25. Nc5 {[%emt 0:00:29]} Rf5 {[%emt 0:02:38]} 26. Rf2 {[%emt 0:08:59]} Rcf8 {[%emt 0:01:00]} 27. Raf1 {[%emt 0:00:27]} h5 {[%emt 0:01:15]} 28. g3 {[%emt 0:01:57]} R8f6 {[%emt 0:01:10]} 29. h3 {[%emt 0:02:25]} Rh6 {[%emt 0:03:21]} 30. g4 {[%emt 0:02:41]} hxg4 {[%emt 0:00:20]} 31. hxg4 {[%emt 0:00:02]} Rf8 {[%emt 0:00:47]} 32. g5 {[%emt 0:02:58]} Rh4 {[%emt 0:02:00]} 33. Qg3 {[%emt 0:00:35]} Rh5 {[%emt 0:00:38]} 34. Qg4 {[%emt 0:04:24]} g6 {[%emt 0:00:44]} 35. Rh2 {[%emt 0:01:05]} Rxh2 {[%emt 0:00:43]} 36. Kxh2 {[%emt 0:00:01]} Kg7 {[%emt 0:01:40]} 37. Kg2 {[%emt 0:00:51]} Bc8 {[%emt 0:01:33]} 38. Qh4 {[%emt 0:01:47]} Rh8 {[%emt 0:00:21]} 39. Qe1 {[%emt 0:00:20]} Qe7 {[%emt 0:01:30]} 40. Qe5+ {[%emt 0:00:00]} Kg8 {[%emt 0:00:00]} 41. Qb8 {[%emt 0:02:44]} Kf7 {[%emt 0:16:51]} 42. Re1 {[%emt 0:06:39]} Qe8 {[%emt 0:04:47]} 43. Nd3 {[%emt 0:01:39]} e5 {[%emt 0:02:02]} 44. Qc7+ {[%emt 0:01:45]} Kg8 {[%emt 0:01:49]} 45. Rxe5 {[%emt 0:00:54]} Bh3+ {[%emt 0:03:23]} 46. Kg1 {[%emt 0:02:31]} 0-1